[Event "4NCL Div 1 2024-25"]
[Site "England"]
[Date "2025.02.15"]
[Round "5.1"]
[White "Larkin, Vladyslav"]
[Black "Harvey, Marcus R"]
[Result "1/2-1/2"]
[Annotator "TA"]
[ECO "A36"]
[WhiteElo "2455"]
[BlackElo "2491"]
[PlyCount "66"]
[EventDate "2024.11.23"]
[EventType "team-tourn"]
[EventCountry "ENG"]
[SourceTitle "playchess.com"]
[Source "ChessBase"]
[SourceQuality "1"]
[TimeControl "40/6000+30:3000+30"]

{[%evp 9,66,31,39,16,25,6,10,13,46,48,66,66,61,49,52,40,55,49,41,41,63,45,79,61,143,150,216,200,222,225,230,216,224,205,207,37,37,77,66,64,22,39,25,47,27,67,99,0,0,0,0,0,0,0,0,0,0,0,0]} 1. c4 {[%emt 0:10:11]} c5 {[%emt 0:10:06]} 2. Nc3 {[%emt 0:00:27]} d6 {[%emt 0:03:52]} 3. g3 {[%emt 0:01:20]} Nc6 {[%emt 0:01:27]} 4. Bg2 {[%emt 0:00:06]} h5 {[%emt 0:02:18]} 5. Nf3 {[%emt 0:27:41]} Bd7 {[%emt 0:00:49]} 6. h3 {[%emt 0:13:09] A36: Symmetrical English vs ...g6: 4 Bg2 Bg7.} g6 $146 {[%emt 0:02:53]} (6... Qc8 7. d3 g6 8. Bd2 Bg7 9. Rb1 Nf6 10. a3 Nd4 11. Ng5 Bc6 12. O-O Bxg2 13. Kxg2 {½-½ Blednov,S (2459)-Osmetkin,A (2179) Krasnograd Christmas op 2018 (1)}) 7. e3 {[%emt 0:01:04]} Bg7 {[%emt 0:01:16]} 8. d4 {[%emt 0:00:20]} b6 {[%emt 0:07:00]} 9. b3 {[%emt 0:01:23]} Nh6 {[%emt 0:00:43]} 10. Bb2 {[%emt 0:00:26]} Nf5 {[%emt 0:06:10]} 11. dxc5 {[%emt 0:03:06]} bxc5 {[%emt 0:01:13]} 12. O-O {[%emt 0:07:55]} Qa5 {[%emt 0:00:45]} 13. Qc1 {[%emt 0:00:20]} Rb8 {[%emt 0:06:54]} 14. Nd5 {[%emt 0:02:40]} Kf8 {[%emt 0:06:19]} 15. Rd1 {[%emt 0:00:57]} Be8 {[%emt 0:09:06]} 16. Bxg7+ {[%emt 0:04:49]} Kxg7 {[%emt 0:00:35]} ({Black should play} 16... Nxg7 $14 17. h4 Bd7) 17. Qb2+ $1 $16 {[%emt 0:00:11]} f6 {[%emt 0:02:04]} (17... Kg8 $16 18. a3 Qd8) 18. g4 $1 $18 {[%emt 0:08:56]} hxg4 {[%emt 0:00:19]} 19. hxg4 {[%emt 0:00:04]} Nh4 {[%emt 0:06:50] [#]} 20. Nxh4 {[%emt 0:00:34]} Rxh4 {[%emt 0:00:02]} 21. g5 {[%emt 0:14:04]} Qd8 {[%emt 0:00:20] [#]} 22. gxf6+ $2 {[%emt 0:00:39]} ({White has to play} 22. Nf4 $1 $18 {[%cal Rf4e6] Hoping for Ne6+.} Kh7 23. gxf6 exf6 24. Qd2) 22... exf6 $14 {[%emt 0:00:06] [#]} 23. Qxf6+ $1 {[%emt 0:00:26] Counterplay Black} Qxf6 {[%emt 0:00:05]} 24. Nxf6 {[%emt 0:00:02]} Kxf6 {[%emt 0:00:04]} 25. Bxc6 {[%emt 0:00:04]} (25. Rxd6+ Ke7 26. Rxc6 Bxc6 27. Bxc6 Rb6) 25... Bxc6 {[%emt 0:01:09][%csl Gc6][%cal Rh4h1]} 26. Rxd6+ {[%emt 0:00:23]} Ke5 $1 {[%emt 0:06:10][%csl Gc6][%cal Rh4h1]} 27. Rxc6 $11 {[%emt 0:00:10][%cal Oa1d1][%mdl 4096] Endgame KRR-KRR. White is two pawns up.} Rbh8 $1 {[%emt 0:00:03]} 28. f4+ {[%emt 0:12:32]} (28. Rxc5+ $16 Ke4 29. f3+ (29. Kg2 $2 Rg4+ 30. Kf1 Kf3 $19) 29... Kxf3 30. Rf1+ Ke2 31. Rf2+ Ke1 32. Rf4) 28... Ke4 {[%emt 0:01:17] ( -> ...Rg4+). The position is equal.} 29. Re6+ {[%emt 0:00:18]} (29. Rxc5 Rg4+ (29... Kxe3 30. Re1+ Kxf4 31. Rf1+ Ke4 32. Rc7 $11) (29... Rh1+ $2 30. Kf2 $19) 30. Kf1 Kf3 (30... Kxe3 $2 31. Re5+ Kf3 32. Ke1 $19) (30... Rh1+ {is a self mate.} 31. Kf2 Rh2+ 32. Kf1 Kf3 33. Rh5 Rf2+ 34. Ke1 Rg1#) 31. Ke1 Rg2 (31... Kxe3 $2 32. Kd1 $19)) 29... Kf3 {[%emt 0:03:53][%csl Gh8][%cal Rh4h1]} 30. Rf1+ {[%emt 0:00:08]} (30. Rxg6 $2 Rh1#) 30... Ke2 {[%emt 0:00:05][%cal Rh4g4]} 31. Rf2+ {[%emt 0:00:15]} (31. Rxg6 $2 Rh1+ (31... Kxe3 $2 32. Re6+ Kd2 33. Kg2 $16) 32. Kg2 Rxf1 $19) 31... Ke1 $1 {[%emt 0:00:45] Hoping for ...Rh1+.} 32. Rf1+ $1 {[%emt 0:00:30]} (32. Rxg6 $2 Rh1+ 33. Kg2 R1h2+ (33... R8h2+ $2 34. Kf3 $19) 34. Kf3 Rxf2+ 35. Ke4 Ke2 $19 (35... Rxa2 $2 36. f5 $19)) 32... Ke2 {[%emt 0:00:08][%cal Rh4g4]} 33. Rf2+ {[%emt 0:00:11]} (33. Rxg6 $2 {too greedy.} Rh1+ (33... Kxe3 34. Re6+ Kd2 35. Kg2 $18) 34. Kg2 Rxf1 $19) 33... Ke1 $1 {[%emt 0:00:15] White really could win this.   Weighted Error Value: White=0.16 (very precise) /Black=0.15 (very precise)   Missed win:     	White=1     	---        Mistake:       	White=1     	Black=2      Inaccurate:     	---       	Black=2      OK:         	White=8     	Black=6      Best:        	White=5     	Black=2      Strong:       	White=2     	Black=4} 1/2-1/2

[Event "4NCL Div 1 2024-25"]
[Site "England"]
[Date "2025.02.15"]
[Round "5.1"]
[White "Rendle, Thomas E"]
[Black "Kantor, Gergely"]
[Result "0-1"]
[Annotator "TA"]
[ECO "A62"]
[WhiteElo "2383"]
[BlackElo "2558"]
[PlyCount "66"]
[EventDate "2024.11.23"]
[EventType "team-tourn"]
[EventCountry "ENG"]
[SourceTitle "playchess.com"]
[Source "ChessBase"]
[SourceQuality "1"]
[TimeControl "40/6000+30:3000+30"]

{[%evp 18,66,28,28,20,2,7,16,16,12,30,38,17,14,11,37,27,0,0,-58,-61,-68,-65,-35,5,-72,-32,-26,-33,-66,-33,-436,-457,-545,-531,-612,-584,-600,-271,-258,-262,-1020,-980,-6306,-6291,-29993,-29994,-29996,-29997,-29997,179]} 1. d4 {[%emt 0:10:04]} Nf6 {[%emt 0:10:02]} 2. c4 {[%emt 0:00:06]} e6 {[%emt 0:00:02]} 3. g3 {[%emt 0:00:20]} c5 {[%emt 0:00:04]} 4. d5 {[%emt 0:00:14]} exd5 {[%emt 0:00:04]} 5. cxd5 {[%emt 0:00:05]} d6 {[%emt 0:00:08]} 6. Nc3 {[%emt 0:00:26]} g6 {[%emt 0:00:05]} 7. Bg2 {[%emt 0:00:05]} Bg7 {[%emt 0:00:03]} 8. Nf3 {[%emt 0:00:10]} O-O {[%emt 0:00:07]} 9. O-O {[%emt 0:00:35]} Re8 {[%emt 0:00:07]} 10. Bf4 {[%emt 0:01:01]} Bf5 {[%emt 0:00:10] A62: Modern Benoni: Fianchetto Variation without early ...Nbd7.} 11. Nh4 {[%emt 0:07:44] Threatens to win with Nxf5.} Bg4 $1 {[%emt 0:00:08][%cal Ob7b5] 11...Bg4 scores better than 11...Bc8.} 12. Qd2 {[%emt 0:01:05]} Na6 {[%emt 0:00:22][%cal Ob7b5,Bb8a6,Ba6c5,Bc5b3][%mdl 32] The position is equal.} 13. Rfe1 {[%emt 0:05:24]} c4 {[%emt 0:02:09]} 14. h3 {[%emt 0:13:02]} Bc8 {[%emt 0:01:00]} 15. Bh6 {[%emt 0:02:29]} Bxh6 $146 {[%emt 0:00:11]} (15... Bd7 16. Bxg7 Kxg7 17. Qf4 Qb6 18. Nf3 Qxb2 19. Rec1 Qa3 20. Nd2 b5 21. Nde4 Rxe4 22. Nxe4 Nxe4 23. Qxe4 {½-½ Costa Trillo,V (2377)-Dezan,A (2154) ARG-ch33 email 2020}) 16. Qxh6 {[%emt 0:00:09]} Nc5 {[%emt 0:00:01]} 17. Qf4 {[%emt 0:06:59]} b5 $1 {[%emt 0:00:15] Threatens to win with ...b4.} 18. b4 {[%emt 0:17:16]} (18. Nf3 $11) 18... cxb3 $15 {[%emt 0:05:36]} 19. axb3 {[%emt 0:00:12]} Nh5 {[%emt 0:10:35]} (19... Nxb3 20. Ra3 Nc5 (20... Nh5 21. Qb4 $11) 21. Nxb5 $11) 20. Qh6 {[%emt 0:04:01]} b4 {[%emt 0:02:22]} 21. Nb5 {[%emt 0:12:35]} (21. Na4 $1 $11 Nxa4 (21... Nxb3 22. Rab1 $16) 22. Rxa4) 21... Nxb3 {[%emt 0:29:54]} (21... a5 22. Nd4 Nf6 23. Nhf3 Nfe4) 22. Rxa7 {[%emt 0:00:20]} Rxa7 {[%emt 0:05:22]} 23. Nxa7 {[%emt 0:00:05]} Nxg3 {[%emt 0:02:18]} 24. Nxc8 $2 {[%emt 0:02:57][%mdl 8192] [#] White does not recover from this.} (24. Nc6 $1 $15 Qb6 25. e3) 24... Nxe2+ $19 {[%emt 0:01:02]} ({Not} 24... Rxe2 25. Rb1 Nd2 26. Ra1 (26. Rxb4 $2 {too greedy.} Qxc8 27. Kh2 Ndf1+ 28. Bxf1 Nxf1+ 29. Kg2 Ne3+ 30. Kf3 Rc2 $19) 26... Qxc8 (26... Qf6 $2 27. Ne7+ Qxe7 28. Ra8+ $18) 27. fxg3 $11) 25. Rxe2 {[%emt 0:01:17]} Rxe2 {[%emt 0:00:57]} 26. Nf5 {[%emt 0:00:11]} gxf5 {[%emt 0:18:41]} 27. Nxd6 {[%emt 0:00:09]} Re1+ {[%emt 0:00:15]} (27... Nd4 $142 28. Nb7 Re1+ 29. Kh2 Qb8+ (29... Qe7 $2 30. d6 $19) 30. d6 Ne6 (30... Re6 31. Qf4 $15)) 28. Kh2 {[%emt 0:08:57]} Nd4 {[%emt 0:03:28]} 29. f4 $2 {[%emt 0:02:22]} (29. Nxf7 Kxf7 30. Qxh7+ Ke8 31. Qh8+ Kd7 32. Qxd4) 29... Re2 {[%emt 0:01:34] [#] ( -> ...Nf3+)} 30. Kh1 {[%emt 0:00:53]} b3 {[%emt 0:02:38] ( -> ...b2)} 31. Nxf7 {[%emt 0:00:47]} b2 {[%emt 0:00:37] Black mates.} 32. Nxd8 {[%emt 0:00:26]} b1=Q+ {[%emt 0:00:04]} ({Weaker is} 32... b1=B 33. Qf6 (33. Qg5+ Kf8 $18) 33... Re1+ 34. Kh2 Re8 35. Qf7+ Kh8 36. Qxe8+ Kg7 37. Qf7+ Kh6 38. Qf6+ Kh5 39. Qg5#) 33. Kh2 {[%emt 0:00:12]} Nf3+ {[%emt 0:00:04][%mdl 32768] Weighted Error Value: White=0.99/Black=0.25 (precise)  Loss on time!?  Loses game:     	White=1     	---        Mistake:       	White=3     	---        Inaccurate:     	White=3     	Black=3      OK:         	White=5     	Black=8      Best:        	White=1     	Black=2      Strong:       	---       	Black=1} 0-1

[Event "4NCL Div 1 2024-25"]
[Site "England"]
[Date "2025.02.15"]
[Round "5.2"]
[White "Erdos, Viktor"]
[Black "Birtwistle, Nigel"]
[Result "1-0"]
[Annotator "TA"]
[ECO "A57"]
[WhiteElo "2533"]
[BlackElo "2041"]
[PlyCount "61"]
[EventDate "2024.11.23"]
[EventType "team-tourn"]
[EventCountry "ENG"]
[SourceTitle "playchess.com"]
[Source "ChessBase"]
[SourceQuality "1"]
[TimeControl "40/6000+30:3000+30"]

{[%evp 15,61,35,35,0,10,0,64,49,143,119,184,89,93,86,90,80,75,55,97,85,191,210,197,208,200,182,532,537,531,513,497,489,29989,29990,29991,29992,29994,1740,2126,1830,1591,1412,5681,5489,29992,29993,29993,29994]} 1. d4 {[%emt 0:10:29]} Nf6 {[%emt 0:10:28]} 2. c4 {[%emt 0:00:08]} c5 {[%emt 0:00:23]} 3. d5 {[%emt 0:00:07]} b5 {[%emt 0:00:04]} 4. cxb5 {[%emt 0:00:05]} a6 {[%emt 0:00:05]} 5. e3 {[%emt 0:00:04]} axb5 {[%emt 0:01:20]} 6. Bxb5 {[%emt 0:00:08]} Qa5+ {[%emt 0:00:52]} 7. Nc3 {[%emt 0:00:12]} Bb7 {[%emt 0:00:08]} 8. Bd2 {[%emt 0:01:23]} Qb6 $1 {[%emt 0:00:24]} 9. a4 {[%emt 0:00:46] A57: Benko/Volga Gambit.} Nxd5 {[%emt 0:07:37]} 10. Nf3 {[%emt 0:00:13]} Nc7 {[%emt 0:02:21]} (10... e6 $1 $11) 11. O-O {[%emt 0:03:19] White is slightly better.} Nc6 $146 {[%emt 0:13:38]} (11... g6 $14) (11... Nxb5 12. axb5 Rxa1 13. Qxa1 e6 14. e4 Be7 15. Be3 O-O 16. b4 d6 17. bxc5 dxc5 {1-0 Lysyj,I (2631)-Rogoznikov,A (2339) Cheliabinsk Kurnosov Memorial rapid 2018 (2)}) 12. e4 $16 {[%emt 0:12:40]} e6 {[%emt 0:11:47] [#]} (12... g6 $16 {was worth a try.}) 13. Bf4 {[%emt 0:20:00]} (13. a5 $1 $18 {[%cal Ra5b6] has better winning chances.} Qa7 14. Bf4) 13... Be7 {[%emt 0:08:13]} 14. Ne5 {[%emt 0:34:33]} Nxe5 {[%emt 0:19:05]} 15. Bxe5 {[%emt 0:00:05] A sharp opening} Nxb5 {[%emt 0:01:16]} 16. Nxb5 {[%emt 0:00:10]} Rc8 {[%emt 0:00:39] Prevents Nc7+. Black is now going downhill.} 17. Qg4 $36 {[%emt 0:01:58][%mdl 2048] Black is under strong pressure. White is much more active.} ({Much worse is} 17. Bxg7 Rg8 18. Be5 (18. Qg4 $2 Bf8 $19) 18... Bxe4 $14) 17... d6 {[%emt 0:07:44]} (17... f6 $16) 18. Qxg7 $18 {[%emt 0:06:07]} Rf8 {[%emt 0:00:17] [#]} 19. Bf6 {[%emt 0:01:43]} Bxe4 {[%emt 0:02:38]} 20. Rfe1 {[%emt 0:00:12]} Bf5 $2 {[%emt 0:06:37]} (20... d5 {is more resistant.} 21. Nc3 (21. Rxe4 Bxf6 22. Qxf6 dxe4 $11) 21... Bxf6 22. Qxf6 Qb7) 21. Rad1 {[%emt 0:02:32][%cal Ba1d1,Bd1e1,Be1e3][%mdl 32] Bxe7 would now be deadly.} Rc6 {[%emt 0:02:56]} 22. Bxe7 {[%emt 0:05:32]} Kxe7 {[%emt 0:00:12][%cal Be8e7,Be7e6,Be6d5,Bd5c4,Bc4b3,Bb3a4,Ba4b5][%mdl 32]} 23. g4 {[%emt 0:00:10]} Bc2 {[%emt 0:03:30] [#]} (23... Bxg4 $18 24. Qxg4 h6) 24. Rxe6+ $3 {[%emt 0:00:15][%mdl 512]} Kxe6 {[%emt 0:03:24]} (24... Kd7 25. Re7+) 25. Re1+ {[%emt 0:00:04]} Kd5 {[%emt 0:00:42]} 26. Qxf8 {[%emt 0:04:05]} (26. Qg5+ $142 Kc4 27. Qd2 Bxa4 28. Na3+ Kb3 29. Qc2+ Ka2 30. Ra1+ Kxa1 31. Qb1#) 26... Kc4 {[%emt 0:02:38]} 27. Na3+ {[%emt 0:02:05][%cal Bb5a3,Ba3c2,Bc2a3][%mdl 32]} Kb3 {[%emt 0:01:35]} 28. Re3+ {[%emt 0:00:07]} Kxa4 {[%emt 0:00:39]} 29. Nxc2 {[%emt 0:00:52]} Qxb2 {[%emt 0:00:30]} 30. Qa8+ {[%emt 0:00:20]} Kb5 {[%emt 0:00:07]} 31. Na3+ {[%emt 0:00:04] Weighted Error Value: White=0.42/Black=1.32  Mistake:       	White=1     	Black=6      Inaccurate:     	---       	Black=1      OK:         	White=7     	Black=4      Best:        	White=1     	Black=2      Brilliant:      	White=1     	---} 1-0

[Event "4NCL Div 1 2024-25"]
[Site "England"]
[Date "2025.02.15"]
[Round "5.2"]
[White "Wadsworth, Matthew J"]
[Black "Bottazzi, Ulysse"]
[Result "1-0"]
[Annotator "TA"]
[ECO "E94"]
[WhiteElo "2461"]
[BlackElo "2344"]
[PlyCount "91"]
[EventDate "2024.11.23"]
[EventType "team-tourn"]
[EventCountry "ENG"]
[SourceTitle "playchess.com"]
[Source "ChessBase"]
[SourceQuality "1"]
[TimeControl "40/6000+30:3000+30"]

{[%evp 12,91,42,29,49,33,72,37,47,25,30,18,37,0,37,38,36,41,35,31,40,-61,-58,-58,-65,-51,-52,-41,0,-13,-20,-15,28,56,205,199,314,308,298,335,323,326,488,492,507,558,585,609,601,572,535,552,643,576,1079,1063,1402,814,729,620,585,616,807,796,740,727,828,806,639,764,761,745,723,717,662,650,1042,997,826,530,470,450]} 1. Nf3 {[%emt 0:10:03]} Nf6 {[%emt 0:10:09]} 2. c4 {[%emt 0:00:07]} g6 {[%emt 0:00:34]} 3. Nc3 {[%emt 0:00:07]} Bg7 {[%emt 0:00:20]} 4. e4 {[%emt 0:00:09]} d6 {[%emt 0:00:28]} 5. d4 {[%emt 0:00:08]} O-O {[%emt 0:00:10]} 6. Be2 {[%emt 0:00:06]} e5 {[%emt 0:00:29]} 7. O-O {[%emt 0:00:08]} h6 {[%emt 0:00:40] E94: King's Indian: Classical: 6 Be2 e5 7 0-0: Various Black 7th moves.} 8. Re1 $1 {[%emt 0:03:12] 8.Re1 is better than 8.dxe5.} a5 {[%emt 0:00:38]} 9. Bf1 {[%emt 0:02:17]} (9. dxe5 $5 dxe5 10. h3 $11 (10. Nxe5 Qe7 $16)) 9... Na6 $146 {[%emt 0:01:00] White is slightly better.} (9... exd4 10. Nxd4 Nc6 11. Nc2 Re8 12. f3 Be6 13. Be3 Ne5 14. Na3 c6 15. Qd2 d5 16. exd5 cxd5 {½-½ Doshi,M (2391)-Bhagat,K (2270) Budapest Vezerkepzo Haag GM 11 2024 (5)}) 10. h3 {[%emt 0:02:49]} exd4 {[%emt 0:03:16]} 11. Nxd4 {[%emt 0:00:55]} Re8 {[%emt 0:01:22]} 12. Ndb5 {[%emt 0:04:30]} b6 {[%emt 0:26:05]} 13. Bf4 {[%emt 0:13:29]} Bb7 {[%emt 0:03:22]} 14. f3 {[%emt 0:06:32]} Nh5 {[%emt 0:10:58]} 15. Be3 {[%emt 0:00:38]} Be5 {[%emt 0:06:56]} 16. Ne2 {[%emt 0:02:31]} (16. Bxh6 Qh4 17. Qd2 Nf4 18. Bxf4 Bxf4 $17) ({White should try} 16. Qd2 $1 $14) 16... Bxb2 $15 {[%emt 0:11:26][%csl Oa2,Oc4] White has weak pawns} 17. Bxh6 {[%emt 0:05:34]} Bxa1 {[%emt 0:16:37]} 18. Qxa1 {[%emt 0:00:06]} Qf6 {[%emt 0:00:12]} 19. Qc1 {[%emt 0:00:20]} c6 {[%emt 0:00:57]} 20. Bg5 {[%emt 0:04:09][%cal Bh6g5,Bg5e3,Be3d4][%mdl 32]} Qe5 {[%emt 0:06:00]} 21. Nbc3 {[%emt 0:00:07]} d5 {[%emt 0:00:19] and ...Nc5 would now be decisive} 22. Be3 {[%emt 0:00:14]} Nc5 {[%emt 0:02:11] [#] A mistake that costs the game.} (22... Kh7 $14) 23. Bd4 $1 $18 {[%emt 0:01:55]} Qe7 {[%emt 0:03:08] [#]} (23... Qd6 $142) 24. Qh6 $1 {[%emt 0:00:19][%csl Gd4][%cal Rh6h8]} (24. cxd5 Kh7 $16 (24... cxd5 $2 25. Qh6 $18)) 24... f6 {[%emt 0:04:32]} 25. Qxg6+ {[%emt 0:02:53]} (25. cxd5 Qh7 26. Qxh7+ Kxh7 $16) 25... Ng7 {[%emt 0:00:02]} 26. cxd5 {[%emt 0:03:36]} (26. Qxf6 Qxf6 27. Bxf6 dxe4 $11) 26... cxd5 {[%emt 0:00:42]} (26... Qf7 $142 27. Qxf7+ (27. Qxf6 Qxf6 28. Bxf6 cxd5 $18) 27... Kxf7) 27. Nf4 {[%emt 0:06:23] White is clearly winning.} (27. Nxd5 Bxd5 28. exd5 Qf7 29. Qxf6 Qxf6 30. Bxf6 Nf5 $18) (27. Bxf6 Qf7 28. Qh6 Re6 $18) 27... Qf7 {[%emt 0:00:03]} 28. Qh6 {[%emt 0:02:31][%cal Of4g6] Prevents Qxg6.} (28. Qxf6 Qxf6 29. Bxf6 dxe4 $16) (28. Bxf6 Qxg6 29. Nxg6 dxe4 30. fxe4 (30. Bc4+ Kh7 $15) 30... Kf7 31. Bxg7 Kxg7 $19 (31... Kxg6 $2 32. Bd4 $19)) 28... Nf5 {[%emt 0:01:17]} 29. exf5 {[%emt 0:00:02]} Rxe1 {[%emt 0:00:11]} 30. Bxf6 {[%emt 0:00:10]} (30. Qxf6 $2 {too greedy.} Qxf6 31. Bxf6 Ba6 $19) 30... Qh7 {[%emt 0:00:39]} 31. Qg5+ {[%emt 0:00:01]} Kf8 {[%emt 0:00:44]} 32. Kf2 {[%emt 0:01:09]} Ree8 {[%emt 0:00:29]} 33. Bb5 {[%emt 0:01:45]} Ba6 {[%emt 0:00:28]} 34. Bc6 {[%emt 0:01:35] A strong pair of Bishops.} Nd3+ {[%emt 0:00:24]} 35. Nxd3 {[%emt 0:00:56]} Bxd3 {[%emt 0:00:01]} 36. Bd4 {[%emt 0:00:31] Qf6+ would kill now.} Rad8 {[%emt 0:01:06]} 37. Qf6+ {[%emt 0:05:45]} (37. Nxd5 Re2+ 38. Kg1 Rd6 $11) (37. Bxd5 Rd6 38. Be6 (38. g4 Qh6 $16) 38... Rexe6 39. fxe6 Rxe6 $14) 37... Kg8 {[%emt 0:00:02]} 38. g4 {[%emt 0:01:24]} Bc4 {[%emt 0:00:38]} 39. Bxe8 {[%emt 0:00:40]} Rxe8 {[%emt 0:00:11]} 40. a4 {[%emt 0:02:28]} ({Worse is} 40. Qxb6 Qh4+ 41. Kg2 Bf1+ 42. Kxf1 Qxh3+ 43. Kf2 Qh2+ 44. Kf1 Qh3+ (44... Qh1+ 45. Bg1 $11) 45. Kf2 Qh2+ 46. Kf1 Qh3+ $11) 40... Rf8 {[%emt 0:01:12] Black is weak on the dark squares} 41. Qg5+ {[%emt 0:51:49]} Kf7 {[%emt 0:50:11]} 42. h4 {[%emt 0:00:29][%cal Bh3h4,Bh4h5][%mdl 32]} Ke8 {[%emt 0:00:00]} 43. h5 {[%emt 0:00:00]} Qc7 {[%emt 0:00:00]} 44. Qe3+ {[%emt 0:00:00]} Qe7 {[%emt 0:00:00]} 45. Bxb6 {[%emt 0:00:00] Hoping for Qxe7+.} Qxe3+ {[%emt 0:00:00]} 46. Kxe3 {[%emt 0:00:00] Weighted Error Value: White=0.47/Black=0.74  Mistake:       	White=1     	Black=3      Inaccurate:     	White=2     	Black=6      OK:         	White=11    	Black=7      Best:        	White=2     	Black=2      Strong:       	White=2     	---} 1-0

[Event "4NCL Div 1 2024-25"]
[Site "England"]
[Date "2025.02.15"]
[Round "5.3"]
[White "Maycock Bates, David Henry"]
[Black "Murphy, Conor E"]
[Result "1/2-1/2"]
[Annotator "ChessBase"]
[ECO "C88"]
[WhiteElo "2290"]
[BlackElo "2444"]
[PlyCount "135"]
[EventDate "2024.11.23"]
[EventType "team-tourn"]
[EventCountry "ENG"]
[SourceTitle "playchess.com"]
[Source "ChessBase"]
[SourceQuality "1"]
[TimeControl "40/6000+30:3000+30"]

1. e4 {[%emt 0:10:08]} e5 {[%emt 0:10:08]} 2. Nf3 {[%emt 0:00:08]} Nc6 {[%emt 0:00:07]} 3. Bb5 {[%emt 0:00:10]} a6 {[%emt 0:00:15]} 4. Ba4 {[%emt 0:00:08]} Nf6 {[%emt 0:00:17]} 5. O-O {[%emt 0:00:54]} Be7 {[%emt 0:00:18]} 6. Re1 {[%emt 0:01:45]} b5 {[%emt 0:00:09]} 7. Bb3 {[%emt 0:00:08]} O-O {[%emt 0:00:08]} 8. a4 {[%emt 0:00:15]} Bb7 {[%emt 0:00:46]} 9. d3 {[%emt 0:17:42]} d6 {[%emt 0:00:40]} 10. Bd2 {[%emt 0:07:50]} Qd7 {[%emt 0:01:40]} 11. Nc3 {[%emt 0:24:25]} Na5 {[%emt 0:00:31]} 12. Ba2 {[%emt 0:03:57]} b4 {[%emt 0:00:14]} 13. Ne2 {[%emt 0:03:58]} c5 {[%emt 0:01:24]} 14. c3 {[%emt 0:05:37]} bxc3 {[%emt 0:01:38]} 15. Bxc3 {[%emt 0:03:07]} Nc6 {[%emt 0:01:23]} 16. a5 {[%emt 0:04:52]} Bd8 {[%emt 0:09:52]} 17. Bc4 {[%emt 0:04:39]} Rb8 {[%emt 0:01:45]} 18. Ng3 {[%emt 0:07:24]} Bc8 {[%emt 0:01:32]} 19. Nf5 {[%emt 0:03:42]} g6 {[%emt 0:10:07]} 20. Ne3 {[%emt 0:01:26]} Nd4 {[%emt 0:00:12]} 21. b4 {[%emt 0:01:40]} Bc7 {[%emt 0:34:01]} 22. bxc5 {[%emt 0:00:53]} dxc5 {[%emt 0:01:17]} 23. Nd5 {[%emt 0:03:56]} Nxd5 {[%emt 0:01:32]} 24. Bxd5 {[%emt 0:00:03]} Qe7 {[%emt 0:06:12]} 25. Nd2 {[%emt 0:02:01]} Qg5 {[%emt 0:05:24]} 26. Kh1 {[%emt 0:01:45]} Bg4 {[%emt 0:04:22]} 27. f3 {[%emt 0:00:50]} Be6 {[%emt 0:00:24]} 28. Bxd4 {[%emt 0:00:35]} exd4 {[%emt 0:01:45]} 29. Bxe6 {[%emt 0:00:02]} fxe6 {[%emt 0:04:44]} 30. Nc4 {[%emt 0:00:02]} Qh4 {[%emt 0:07:38]} 31. e5 {[%emt 0:00:10]} Rf5 {[%emt 0:01:04]} 32. Re4 {[%emt 0:01:35]} Qg5 {[%emt 0:01:49]} 33. g3 {[%emt 0:00:34]} Qd8 {[%emt 0:00:47]} 34. Kg2 {[%emt 0:00:35]} Rb5 {[%emt 0:00:29]} 35. Qe1 {[%emt 0:00:31]} Qb8 {[%emt 0:00:43]} 36. f4 {[%emt 0:00:23]} Rb3 {[%emt 0:00:38]} 37. Qe2 {[%emt 0:00:35]} Qb4 {[%emt 0:00:29]} 38. Ra2 {[%emt 0:00:24]} Qc3 {[%emt 0:01:09]} 39. Nd2 {[%emt 0:00:36]} Rb5 {[%emt 0:00:49]} 40. Nc4 {[%emt 0:00:19]} Rb1 {[%emt 0:01:29]} 41. Qd2 {[%emt 0:33:16]} Qb3 {[%emt 0:26:18]} 42. Qc2 {[%emt 0:07:49]} Rf7 {[%emt 0:16:17]} 43. Nd2 {[%emt 0:04:44]} Qxc2 {[%emt 0:00:47]} 44. Rxc2 {[%emt 0:00:02]} Rb5 {[%emt 0:01:51]} 45. Nc4 {[%emt 0:00:04]} Rd7 {[%emt 0:01:58]} 46. Ree2 {[%emt 0:01:24]} Rd8 {[%emt 0:03:01]} 47. Kf3 {[%emt 0:00:53]} Kf8 {[%emt 0:00:41]} 48. Ke4 {[%emt 0:02:24]} Ke7 {[%emt 0:00:12]} 49. h4 {[%emt 0:01:13]} h5 {[%emt 0:02:12]} 50. Rg2 {[%emt 0:00:17]} Rh8 {[%emt 0:00:45]} 51. Ra2 {[%emt 0:02:20]} Rb1 {[%emt 0:00:33]} 52. Rab2 {[%emt 0:00:25]} Rb8 {[%emt 0:00:25]} 53. Rxb8 {[%emt 0:00:31]} Rxb8 {[%emt 0:00:31]} 54. g4 {[%emt 0:01:16]} hxg4 {[%emt 0:00:54]} 55. Rxg4 {[%emt 0:00:03]} Kf7 {[%emt 0:00:05]} 56. Rg1 {[%emt 0:00:07]} Rh8 {[%emt 0:01:17]} 57. Rb1 {[%emt 0:01:08]} Ke7 {[%emt 0:00:29]} 58. Rg1 {[%emt 0:01:11]} Rh6 {[%emt 0:00:12]} 59. h5 {[%emt 0:00:25]} gxh5 {[%emt 0:00:54]} 60. Rg7+ {[%emt 0:00:01]} Kd8 {[%emt 0:00:03]} 61. f5 {[%emt 0:00:05]} exf5+ {[%emt 0:00:25]} 62. Kxf5 {[%emt 0:00:02]} h4 {[%emt 0:00:12]} 63. e6 {[%emt 0:01:19]} h3 {[%emt 0:00:24]} 64. Rg8+ {[%emt 0:00:34]} Ke7 {[%emt 0:00:02]} 65. Rg7+ {[%emt 0:00:05]} Kd8 {[%emt 0:00:15]} 66. Rg8+ {[%emt 0:01:34]} Ke7 {[%emt 0:00:02]} 67. Rg7+ {[%emt 0:00:05]} Kd8 {[%emt 0:01:39]} 68. Nb6 {[%emt 0:00:51]} 1/2-1/2